{"text_format":"3","workbook":"xlsx","n_sheets":4,"sheets":["POČETAK","PARAMETRI PROJEKTA","DETALJI O PROJEKTU","UKUPNE VREDNOSTI ZA PROJEKAT"],"not_rendered":{"charts":2,"defined_names":3,"pivot_tables":1},"read":"whole","date_system":"1900"}

{"sheet":"POČETAK","index":0,"n_rows":7,"n_cols":2,"rows_kept":7}
[null,"OSNOVNI PODACI O OVOM PREDLOŠKU"]
[null,"Pratite parametre projekta, detalje projekta i ukupne vrednosti projekta u ovoj radnoj svesci sa praćenjem planiranja događaja."]
[null,"Unesite informacije na radni list „Parametri projekta“ da biste ažurirali stubičaste grafikone, kao i na radni list „Detalji projekta“. Izvedena tabela na radnom listu „Ukupne vrednosti projekta“ automatski se ažurira."]
[null,"Unesite ime preduzeća na radnom listu sa parametrima i ono će se automatski ažurirati na drugim radnim listovima."]
[null,"Napomena:  "]
[null,"Dodatna uputstva navedena su u koloni A na svakom radnom listu u radnoj svesci PRAĆENJE PLANIRANJA DOGAĐAJA. Taj tekst je namerno skriven. Da biste uklonili tekst, izaberite kolonu A, a zatim izaberite stavku „IZBRIŠI“. Da biste otkrili tekst, izaberite kolonu A, a zatim promenite boju fonta."]
[null,"Da biste saznali više o tabelama u radnim listovima, pritisnite taster SHIFT, a zatim unutar tabele pritisnite taster F10, izaberite opciju „TABELA“, a zatim stavku „ALTERNATIVNI TEKST“."]

{"sheet":"PARAMETRI PROJEKTA","index":1,"n_rows":19,"n_cols":9,"rows_kept":19,"merged":[[23,1,42,3]]}
[null,"Ime preduzeća"]
[null,"Praćenje projekta upravljanja događajem"]
[null,{"$f":"B1&\" Poverljivo\"","v":"Ime preduzeća Poverljivo"}]
[null,"Zasenčene ćelije se same izračunavaju. Ne morate ništa da unosite u njih."]
[null,"TIP PROJEKTA","MENADŽER NALOGA","MENADŽER PROJEKTA","STRETEŠKI MENADŽER","STRUČNJAK ZA DIZAJN","OSOBLJE ZA DOGAĐAJ","ADMINISTRATIVNO OSOBLJE","Ukupno"]
[null,"Razvoj strategije za događaj",{"v":0.2,"d":"20%"},{"v":0.1,"d":"10%"},{"v":0.6,"d":"60%"},{"v":0,"d":"0%"},{"v":0,"d":"0%"},{"v":0.1,"d":"10%"},{"$f":"SUM(Parametri[[#This Row],[MENADŽER NALOGA]:[ADMINISTRATIVNO OSOBLJE]])","v":{"v":1,"d":"100%"}}]
[null,"Planiranje događaja",{"v":0.2,"d":"20%"},{"v":0.5,"d":"50%"},{"v":0.1,"d":"10%"},{"v":0.1,"d":"10%"},{"v":0,"d":"0%"},{"v":0.1,"d":"10%"},{"$f":"SUM(Parametri[[#This Row],[MENADŽER NALOGA]:[ADMINISTRATIVNO OSOBLJE]])","v":{"v":0.9999999999999999,"d":"100%"}}]
[null,"Dizajn događaja",{"v":0.2,"d":"20%"},{"v":0.2,"d":"20%"},{"v":0,"d":"0%"},{"v":0.5,"d":"50%"},{"v":0,"d":"0%"},{"v":0.1,"d":"10%"},{"$f":"SUM(Parametri[[#This Row],[MENADŽER NALOGA]:[ADMINISTRATIVNO OSOBLJE]])","v":{"v":1,"d":"100%"}}]
[null,"Logistika događaja",{"v":0.2,"d":"20%"},{"v":0.6,"d":"60%"},{"v":0,"d":"0%"},{"v":0,"d":"0%"},{"v":0.1,"d":"10%"},{"v":0.1,"d":"10%"},{"$f":"SUM(Parametri[[#This Row],[MENADŽER NALOGA]:[ADMINISTRATIVNO OSOBLJE]])","v":{"v":1,"d":"100%"}}]
[null,"Osoblje za događaj",{"v":0.2,"d":"20%"},{"v":0.1,"d":"10%"},{"v":0,"d":"0%"},{"v":0,"d":"0%"},{"v":0.6,"d":"60%"},{"v":0.1,"d":"10%"},{"$f":"SUM(Parametri[[#This Row],[MENADŽER NALOGA]:[ADMINISTRATIVNO OSOBLJE]])","v":{"v":1,"d":"100%"}}]
[null,"Procena događaja",{"v":0.2,"d":"20%"},{"v":0.2,"d":"20%"},{"v":0.2,"d":"20%"},{"v":0.2,"d":"20%"},{"v":0,"d":"0%"},{"v":0.2,"d":"20%"},{"$f":"SUM(Parametri[[#This Row],[MENADŽER NALOGA]:[ADMINISTRATIVNO OSOBLJE]])","v":{"v":1,"d":"100%"}}]
[null,"Kombinovane stope",{"v":180,"d":"180 RSD"},{"v":120,"d":"120 RSD"},{"v":150,"d":"150 RSD"},{"v":100,"d":"100 RSD"},{"v":80,"d":"80 RSD"},{"v":60,"d":"60 RSD"}]
[]
[{"$nulls":5},"Stubičasti grafikon koji prikazuje planirane i stvarne sate nalazi se u ovoj ćeliji."]
[null,null,"MENADŽER NALOGA","MENADŽER PROJEKTA","STRETEŠKI MENADŽER","STRUČNJAK ZA DIZAJN","OSOBLJE ZA DOGAĐAJ","ADMINISTRATIVNO OSOBLJE"]
[null,"PLANIRANI TROŠKOVI",{"$f":"SUBTOTAL(109,DetaljiOProjektu[MENADŽER NALOGA])","v":{"v":54000,"d":"54,000.00 RSD"}},{"$f":"SUBTOTAL(109,DetaljiOProjektu[MENADŽER PROJEKTA])","v":{"v":52200,"d":"52,200.00 RSD"}},{"$f":"SUBTOTAL(109,DetaljiOProjektu[STRETEŠKI MENADŽER])","v":{"v":24000,"d":"24,000.00 RSD"}},{"$f":"SUBTOTAL(109,DetaljiOProjektu[STRUČNJAK ZA DIZAJN])","v":{"v":29000,"d":"29,000.00 RSD"}},{"$f":"SUBTOTAL(109,DetaljiOProjektu[OSOBLJE ZA DOGAĐAJ])","v":{"v":13200,"d":"13,200.00 RSD"}},{"$f":"SUBTOTAL(109,DetaljiOProjektu[ADMINISTRATIVNO OSOBLJE])","v":{"v":9000,"d":"9,000.00 RSD"}}]
[null,"STVARNI TROŠKOVI",{"$f":"SUBTOTAL(109,DetaljiOProjektu[[MENADŽER NALOGA ]])","v":{"v":54360,"d":"54,360.00 RSD"}},{"$f":"SUBTOTAL(109,DetaljiOProjektu[[MENADŽER PROJEKTA ]])","v":{"v":51540,"d":"51,540.00 RSD"}},{"$f":"SUBTOTAL(109,DetaljiOProjektu[[STRETEŠKI MENADŽER ]])","v":{"v":25650,"d":"25,650.00 RSD"}},{"$f":"SUBTOTAL(109,DetaljiOProjektu[[STRUČNJAK ZA DIZAJN ]])","v":{"v":28900,"d":"28,900.00 RSD"}},{"$f":"SUBTOTAL(109,DetaljiOProjektu[[OSOBLJE ZA DOGAĐAJ ]])","v":{"v":13400,"d":"13,400.00 RSD"}},{"$f":"SUBTOTAL(109,DetaljiOProjektu[[ADMINISTRATIVNO OSOBLJE ]])","v":{"v":9060,"d":"9,060.00 RSD"}}]
[null,"PLANIRANI SATI",{"$f":"C16/$C$12","v":{"v":300,"d":"300.00"}},{"$f":"D16/$C$12","v":{"v":290,"d":"290.00"}},{"v":133.33333333333334,"d":"133.33"},{"v":161.11111111111111,"d":"161.11"},{"v":73.33333333333333,"d":"73.33"},{"v":50,"d":"50.00"}]
[null,"STVARNI SATI",{"$f":"C17/$C$12","v":{"v":302,"d":"302.00"}},{"$f":"D17/$C$12","v":{"v":286.3333333333333,"d":"286.33"}},{"$f":"E17/$C$12","v":{"v":142.5,"d":"142.50"}},{"$f":"F17/$C$12","v":{"v":160.55555555555554,"d":"160.56"}},{"$f":"G17/$C$12","v":{"v":74.44444444444444,"d":"74.44"}},{"$f":"H17/$C$12","v":{"v":50.333333333333336,"d":"50.33"}}]

{"sheet":"DETALJI O PROJEKTU","index":2,"n_rows":10,"n_cols":23,"rows_kept":10}
[null,{"$f":"'PARAMETRI PROJEKTA'!B1","v":"Ime preduzeća"}]
[null,"Praćenje projekta upravljanja događajem"]
[null,{"$f":"'PARAMETRI PROJEKTA'!B3","v":"Ime preduzeća Poverljivo"}]
["Unesite informacije u tabelu „Detalji projekta“ koja počinje od ćelije sa desne strane.\nINFORMACIJE\nDa biste dodali red u tabelu sa desne strane, izaberite ćeliju u krajnjem donjem desnom uglu u telu tabele (ne u redu sa ukupnim vrednostima) i pritisnite taster Tab ili pritisnite tastere SHIFT+F10 tamo gde želite da umetnete red i izaberite stavke „Umetni | Redovi tabele iznad/ispod“.\nObavezno izbrišite sve redove koji se ne koriste zato što izvedena tabela UKUPNE VREDNOSTI PROJEKTA koristi sve ćelije tabele i može da pruži pogrešne rezultate u suprotnom.","IME PROJEKTA","TIP PROJEKTA","PROCENJENI POČETAK","PROCENJENI ZAVRŠETAK","STVARNO VREME POČETKA","STVARNO VREME ZAVRŠETKA","PROCENJENI RAD","STVARNI RAD","PROCENJENO TRAJANJE","STVARNO TRAJANJE","MENADŽER NALOGA","MENADŽER PROJEKTA","STRETEŠKI MENADŽER","STRUČNJAK ZA DIZAJN","OSOBLJE ZA DOGAĐAJ","ADMINISTRATIVNO OSOBLJE","MENADŽER NALOGA ","MENADŽER PROJEKTA ","STRETEŠKI MENADŽER ","STRUČNJAK ZA DIZAJN ","OSOBLJE ZA DOGAĐAJ ","ADMINISTRATIVNO OSOBLJE "]
[null,"Projekat 1","Razvoj strategije za događaj",{"$f":"DATE(YEAR(TODAY()),6,9)","v":"2022-06-09"},{"$f":" DATE(YEAR(TODAY()),8,7)","v":"2022-08-07"},{"$f":"DATE(YEAR(TODAY()),6,29)","v":"2022-06-29"},{"$f":"DATE(YEAR(TODAY()),9,3)","v":"2022-09-03"},200,220,{"$f":"DAYS360(DetaljiOProjektu[[#This Row],[PROCENJENI POČETAK]],DetaljiOProjektu[[#This Row],[PROCENJENI ZAVRŠETAK]],FALSE)","v":58},{"$f":"DAYS360(DetaljiOProjektu[[#This Row],[STVARNO VREME POČETKA]],DetaljiOProjektu[[#This Row],[STVARNO VREME ZAVRŠETKA]],FALSE)","v":64},{"$f":"INDEX(Parametri[],MATCH(DetaljiOProjektu[[#This Row],[TIP PROJEKTA]],Parametri[TIP PROJEKTA],0),MATCH(DetaljiOProjektu[[#Headers],[MENADŽER NALOGA]],Parametri[#Headers],0))*INDEX('PARAMETRI PROJEKTA'!$B$12:$H$12,1,MATCH(DetaljiOProjektu[[#Headers],[MENADŽER NALOGA]],Parametri[#Headers],0))*DetaljiOProjektu[[#This Row],[PROCENJENI RAD]]","v":{"v":7200,"d":"7,200 RSD"}},{"$f":"INDEX(Parametri[],MATCH(DetaljiOProjektu[[#This Row],[TIP PROJEKTA]],Parametri[TIP PROJEKTA],0),MATCH(DetaljiOProjektu[[#Headers],[MENADŽER PROJEKTA]],Parametri[#Headers],0))*INDEX('PARAMETRI PROJEKTA'!$B$12:$H$12,1,MATCH(DetaljiOProjektu[[#Headers],[MENADŽER PROJEKTA]],Parametri[#Headers],0))*DetaljiOProjektu[[#This Row],[PROCENJENI RAD]]","v":{"v":2400,"d":"2,400 RSD"}},{"$f":"INDEX(Parametri[],MATCH(DetaljiOProjektu[[#This Row],[TIP PROJEKTA]],Parametri[TIP PROJEKTA],0),MATCH(DetaljiOProjektu[[#Headers],[STRETEŠKI MENADŽER]],Parametri[#Headers],0))*INDEX('PARAMETRI PROJEKTA'!$B$12:$H$12,1,MATCH(DetaljiOProjektu[[#Headers],[STRETEŠKI MENADŽER]],Parametri[#Headers],0))*DetaljiOProjektu[[#This Row],[PROCENJENI RAD]]","v":{"v":18000,"d":"18,000 RSD"}},{"$f":"INDEX(Parametri[],MATCH(DetaljiOProjektu[[#This Row],[TIP PROJEKTA]],Parametri[TIP PROJEKTA],0),MATCH(DetaljiOProjektu[[#Headers],[STRUČNJAK ZA DIZAJN]],Parametri[#Headers],0))*INDEX('PARAMETRI PROJEKTA'!$B$12:$H$12,1,MATCH(DetaljiOProjektu[[#Headers],[STRUČNJAK ZA DIZAJN]],Parametri[#Headers],0))*DetaljiOProjektu[[#This Row],[PROCENJENI RAD]]","v":{"v":0,"d":"0 RSD"}},{"$f":"INDEX(Parametri[],MATCH(DetaljiOProjektu[[#This Row],[TIP PROJEKTA]],Parametri[TIP PROJEKTA],0),MATCH(DetaljiOProjektu[[#Headers],[OSOBLJE ZA DOGAĐAJ]],Parametri[#Headers],0))*INDEX('PARAMETRI PROJEKTA'!$B$12:$H$12,1,MATCH(DetaljiOProjektu[[#Headers],[OSOBLJE ZA DOGAĐAJ]],Parametri[#Headers],0))*DetaljiOProjektu[[#This Row],[PROCENJENI RAD]]","v":{"v":0,"d":"0 RSD"}},{"$f":"INDEX(Parametri[],MATCH(DetaljiOProjektu[[#This Row],[TIP PROJEKTA]],Parametri[TIP PROJEKTA],0),MATCH(DetaljiOProjektu[[#Headers],[ADMINISTRATIVNO OSOBLJE]],Parametri[#Headers],0))*INDEX('PARAMETRI PROJEKTA'!$B$12:$H$12,1,MATCH(DetaljiOProjektu[[#Headers],[ADMINISTRATIVNO OSOBLJE]],Parametri[#Headers],0))*DetaljiOProjektu[[#This Row],[PROCENJENI RAD]]","v":{"v":1200,"d":"1,200 RSD"}},{"$f":"INDEX(Parametri[],MATCH(DetaljiOProjektu[[#This Row],[TIP PROJEKTA]],Parametri[TIP PROJEKTA],0),MATCH(DetaljiOProjektu[[#Headers],[MENADŽER NALOGA]],Parametri[#Headers],0))*INDEX('PARAMETRI PROJEKTA'!$B$12:$H$12,1,MATCH(DetaljiOProjektu[[#Headers],[MENADŽER NALOGA]],Parametri[#Headers],0))*DetaljiOProjektu[[#This Row],[STVARNI RAD]]","v":{"v":7920,"d":"7,920 RSD"}},{"$f":"INDEX(Parametri[],MATCH(DetaljiOProjektu[[#This Row],[TIP PROJEKTA]],Parametri[TIP PROJEKTA],0),MATCH(DetaljiOProjektu[[#Headers],[MENADŽER PROJEKTA]],Parametri[#Headers],0))*INDEX('PARAMETRI PROJEKTA'!$B$12:$H$12,1,MATCH(DetaljiOProjektu[[#Headers],[MENADŽER PROJEKTA]],Parametri[#Headers],0))*DetaljiOProjektu[[#This Row],[STVARNI RAD]]","v":{"v":2640,"d":"2,640 RSD"}},{"$f":"INDEX(Parametri[],MATCH(DetaljiOProjektu[[#This Row],[TIP PROJEKTA]],Parametri[TIP PROJEKTA],0),MATCH(DetaljiOProjektu[[#Headers],[STRETEŠKI MENADŽER]],Parametri[#Headers],0))*INDEX('PARAMETRI PROJEKTA'!$B$12:$H$12,1,MATCH(DetaljiOProjektu[[#Headers],[STRETEŠKI MENADŽER]],Parametri[#Headers],0))*DetaljiOProjektu[[#This Row],[STVARNI RAD]]","v":{"v":19800,"d":"19,800 RSD"}},{"$f":"INDEX(Parametri[],MATCH(DetaljiOProjektu[[#This Row],[TIP PROJEKTA]],Parametri[TIP PROJEKTA],0),MATCH(DetaljiOProjektu[[#Headers],[STRUČNJAK ZA DIZAJN]],Parametri[#Headers],0))*INDEX('PARAMETRI PROJEKTA'!$B$12:$H$12,1,MATCH(DetaljiOProjektu[[#Headers],[STRUČNJAK ZA DIZAJN]],Parametri[#Headers],0))*DetaljiOProjektu[[#This Row],[STVARNI RAD]]","v":{"v":0,"d":"0 RSD"}},{"$f":"INDEX(Parametri[],MATCH(DetaljiOProjektu[[#This Row],[TIP PROJEKTA]],Parametri[TIP PROJEKTA],0),MATCH(DetaljiOProjektu[[#Headers],[OSOBLJE ZA DOGAĐAJ]],Parametri[#Headers],0))*INDEX('PARAMETRI PROJEKTA'!$B$12:$H$12,1,MATCH(DetaljiOProjektu[[#Headers],[OSOBLJE ZA DOGAĐAJ]],Parametri[#Headers],0))*DetaljiOProjektu[[#This Row],[STVARNI RAD]]","v":{"v":0,"d":"0 RSD"}},{"$f":"INDEX(Parametri[],MATCH(DetaljiOProjektu[[#This Row],[TIP PROJEKTA]],Parametri[TIP PROJEKTA],0),MATCH(DetaljiOProjektu[[#Headers],[ADMINISTRATIVNO OSOBLJE]],Parametri[#Headers],0))*INDEX('PARAMETRI PROJEKTA'!$B$12:$H$12,1,MATCH(DetaljiOProjektu[[#Headers],[ADMINISTRATIVNO OSOBLJE]],Parametri[#Headers],0))*DetaljiOProjektu[[#This Row],[STVARNI RAD]]","v":{"v":1320,"d":"1,320 RSD"}}]
[null,"Projekat 2","Planiranje događaja",{"$f":"DATE(YEAR(TODAY())+1,6,25)","v":"2023-06-25"},{"$f":"DATE(YEAR(TODAY())+1,7,27)","v":"2023-07-27"},{"$f":"DATE(YEAR(TODAY()),7,15)","v":"2022-07-15"},{"$f":"DATE(YEAR(TODAY())+1,8,25)","v":"2023-08-25"},400,390,{"$f":"DAYS360(DetaljiOProjektu[[#This Row],[PROCENJENI POČETAK]],DetaljiOProjektu[[#This Row],[PROCENJENI ZAVRŠETAK]],FALSE)","v":32},{"$f":"DAYS360(DetaljiOProjektu[[#This Row],[STVARNO VREME POČETKA]],DetaljiOProjektu[[#This Row],[STVARNO VREME ZAVRŠETKA]],FALSE)","v":400},{"$f":"INDEX(Parametri[],MATCH(DetaljiOProjektu[[#This Row],[TIP PROJEKTA]],Parametri[TIP PROJEKTA],0),MATCH(DetaljiOProjektu[[#Headers],[MENADŽER NALOGA]],Parametri[#Headers],0))*INDEX('PARAMETRI PROJEKTA'!$B$12:$H$12,1,MATCH(DetaljiOProjektu[[#Headers],[MENADŽER NALOGA]],Parametri[#Headers],0))*DetaljiOProjektu[[#This Row],[PROCENJENI RAD]]","v":{"v":14400,"d":"14,400 RSD"}},{"$f":"INDEX(Parametri[],MATCH(DetaljiOProjektu[[#This Row],[TIP PROJEKTA]],Parametri[TIP PROJEKTA],0),MATCH(DetaljiOProjektu[[#Headers],[MENADŽER PROJEKTA]],Parametri[#Headers],0))*INDEX('PARAMETRI PROJEKTA'!$B$12:$H$12,1,MATCH(DetaljiOProjektu[[#Headers],[MENADŽER PROJEKTA]],Parametri[#Headers],0))*DetaljiOProjektu[[#This Row],[PROCENJENI RAD]]","v":{"v":24000,"d":"24,000 RSD"}},{"$f":"INDEX(Parametri[],MATCH(DetaljiOProjektu[[#This Row],[TIP PROJEKTA]],Parametri[TIP PROJEKTA],0),MATCH(DetaljiOProjektu[[#Headers],[STRETEŠKI MENADŽER]],Parametri[#Headers],0))*INDEX('PARAMETRI PROJEKTA'!$B$12:$H$12,1,MATCH(DetaljiOProjektu[[#Headers],[STRETEŠKI MENADŽER]],Parametri[#Headers],0))*DetaljiOProjektu[[#This Row],[PROCENJENI RAD]]","v":{"v":6000,"d":"6,000 RSD"}},{"$f":"INDEX(Parametri[],MATCH(DetaljiOProjektu[[#This Row],[TIP PROJEKTA]],Parametri[TIP PROJEKTA],0),MATCH(DetaljiOProjektu[[#Headers],[STRUČNJAK ZA DIZAJN]],Parametri[#Headers],0))*INDEX('PARAMETRI PROJEKTA'!$B$12:$H$12,1,MATCH(DetaljiOProjektu[[#Headers],[STRUČNJAK ZA DIZAJN]],Parametri[#Headers],0))*DetaljiOProjektu[[#This Row],[PROCENJENI RAD]]","v":{"v":4000,"d":"4,000 RSD"}},{"$f":"INDEX(Parametri[],MATCH(DetaljiOProjektu[[#This Row],[TIP PROJEKTA]],Parametri[TIP PROJEKTA],0),MATCH(DetaljiOProjektu[[#Headers],[OSOBLJE ZA DOGAĐAJ]],Parametri[#Headers],0))*INDEX('PARAMETRI PROJEKTA'!$B$12:$H$12,1,MATCH(DetaljiOProjektu[[#Headers],[OSOBLJE ZA DOGAĐAJ]],Parametri[#Headers],0))*DetaljiOProjektu[[#This Row],[PROCENJENI RAD]]","v":{"v":0,"d":"0 RSD"}},{"$f":"INDEX(Parametri[],MATCH(DetaljiOProjektu[[#This Row],[TIP PROJEKTA]],Parametri[TIP PROJEKTA],0),MATCH(DetaljiOProjektu[[#Headers],[ADMINISTRATIVNO OSOBLJE]],Parametri[#Headers],0))*INDEX('PARAMETRI PROJEKTA'!$B$12:$H$12,1,MATCH(DetaljiOProjektu[[#Headers],[ADMINISTRATIVNO OSOBLJE]],Parametri[#Headers],0))*DetaljiOProjektu[[#This Row],[PROCENJENI RAD]]","v":{"v":2400,"d":"2,400 RSD"}},{"$f":"INDEX(Parametri[],MATCH(DetaljiOProjektu[[#This Row],[TIP PROJEKTA]],Parametri[TIP PROJEKTA],0),MATCH(DetaljiOProjektu[[#Headers],[MENADŽER NALOGA]],Parametri[#Headers],0))*INDEX('PARAMETRI PROJEKTA'!$B$12:$H$12,1,MATCH(DetaljiOProjektu[[#Headers],[MENADŽER NALOGA]],Parametri[#Headers],0))*DetaljiOProjektu[[#This Row],[STVARNI RAD]]","v":{"v":14040,"d":"14,040 RSD"}},{"$f":"INDEX(Parametri[],MATCH(DetaljiOProjektu[[#This Row],[TIP PROJEKTA]],Parametri[TIP PROJEKTA],0),MATCH(DetaljiOProjektu[[#Headers],[MENADŽER PROJEKTA]],Parametri[#Headers],0))*INDEX('PARAMETRI PROJEKTA'!$B$12:$H$12,1,MATCH(DetaljiOProjektu[[#Headers],[MENADŽER PROJEKTA]],Parametri[#Headers],0))*DetaljiOProjektu[[#This Row],[STVARNI RAD]]","v":{"v":23400,"d":"23,400 RSD"}},{"$f":"INDEX(Parametri[],MATCH(DetaljiOProjektu[[#This Row],[TIP PROJEKTA]],Parametri[TIP PROJEKTA],0),MATCH(DetaljiOProjektu[[#Headers],[STRETEŠKI MENADŽER]],Parametri[#Headers],0))*INDEX('PARAMETRI PROJEKTA'!$B$12:$H$12,1,MATCH(DetaljiOProjektu[[#Headers],[STRETEŠKI MENADŽER]],Parametri[#Headers],0))*DetaljiOProjektu[[#This Row],[STVARNI RAD]]","v":{"v":5850,"d":"5,850 RSD"}},{"$f":"INDEX(Parametri[],MATCH(DetaljiOProjektu[[#This Row],[TIP PROJEKTA]],Parametri[TIP PROJEKTA],0),MATCH(DetaljiOProjektu[[#Headers],[STRUČNJAK ZA DIZAJN]],Parametri[#Headers],0))*INDEX('PARAMETRI PROJEKTA'!$B$12:$H$12,1,MATCH(DetaljiOProjektu[[#Headers],[STRUČNJAK ZA DIZAJN]],Parametri[#Headers],0))*DetaljiOProjektu[[#This Row],[STVARNI RAD]]","v":{"v":3900,"d":"3,900 RSD"}},{"$f":"INDEX(Parametri[],MATCH(DetaljiOProjektu[[#This Row],[TIP PROJEKTA]],Parametri[TIP PROJEKTA],0),MATCH(DetaljiOProjektu[[#Headers],[OSOBLJE ZA DOGAĐAJ]],Parametri[#Headers],0))*INDEX('PARAMETRI PROJEKTA'!$B$12:$H$12,1,MATCH(DetaljiOProjektu[[#Headers],[OSOBLJE ZA DOGAĐAJ]],Parametri[#Headers],0))*DetaljiOProjektu[[#This Row],[STVARNI RAD]]","v":{"v":0,"d":"0 RSD"}},{"$f":"INDEX(Parametri[],MATCH(DetaljiOProjektu[[#This Row],[TIP PROJEKTA]],Parametri[TIP PROJEKTA],0),MATCH(DetaljiOProjektu[[#Headers],[ADMINISTRATIVNO OSOBLJE]],Parametri[#Headers],0))*INDEX('PARAMETRI PROJEKTA'!$B$12:$H$12,1,MATCH(DetaljiOProjektu[[#Headers],[ADMINISTRATIVNO OSOBLJE]],Parametri[#Headers],0))*DetaljiOProjektu[[#This Row],[STVARNI RAD]]","v":{"v":2340,"d":"2,340 RSD"}}]
[null,"Projekat 3","Dizajn događaja",{"$f":"DATE(YEAR(TODAY())+2,7,12)","v":"2024-07-12"},{"$f":"DATE(YEAR(TODAY())+2,9,19)","v":"2024-09-19"},"2025-08-07","2025-10-10",500,500,{"$f":"DAYS360(DetaljiOProjektu[[#This Row],[PROCENJENI POČETAK]],DetaljiOProjektu[[#This Row],[PROCENJENI ZAVRŠETAK]],FALSE)","v":67},{"$f":"DAYS360(DetaljiOProjektu[[#This Row],[STVARNO VREME POČETKA]],DetaljiOProjektu[[#This Row],[STVARNO VREME ZAVRŠETKA]],FALSE)","v":63},{"$f":"INDEX(Parametri[],MATCH(DetaljiOProjektu[[#This Row],[TIP PROJEKTA]],Parametri[TIP PROJEKTA],0),MATCH(DetaljiOProjektu[[#Headers],[MENADŽER NALOGA]],Parametri[#Headers],0))*INDEX('PARAMETRI PROJEKTA'!$B$12:$H$12,1,MATCH(DetaljiOProjektu[[#Headers],[MENADŽER NALOGA]],Parametri[#Headers],0))*DetaljiOProjektu[[#This Row],[PROCENJENI RAD]]","v":{"v":18000,"d":"18,000 RSD"}},{"$f":"INDEX(Parametri[],MATCH(DetaljiOProjektu[[#This Row],[TIP PROJEKTA]],Parametri[TIP PROJEKTA],0),MATCH(DetaljiOProjektu[[#Headers],[MENADŽER PROJEKTA]],Parametri[#Headers],0))*INDEX('PARAMETRI PROJEKTA'!$B$12:$H$12,1,MATCH(DetaljiOProjektu[[#Headers],[MENADŽER PROJEKTA]],Parametri[#Headers],0))*DetaljiOProjektu[[#This Row],[PROCENJENI RAD]]","v":{"v":12000,"d":"12,000 RSD"}},{"$f":"INDEX(Parametri[],MATCH(DetaljiOProjektu[[#This Row],[TIP PROJEKTA]],Parametri[TIP PROJEKTA],0),MATCH(DetaljiOProjektu[[#Headers],[STRETEŠKI MENADŽER]],Parametri[#Headers],0))*INDEX('PARAMETRI PROJEKTA'!$B$12:$H$12,1,MATCH(DetaljiOProjektu[[#Headers],[STRETEŠKI MENADŽER]],Parametri[#Headers],0))*DetaljiOProjektu[[#This Row],[PROCENJENI RAD]]","v":{"v":0,"d":"0 RSD"}},{"$f":"INDEX(Parametri[],MATCH(DetaljiOProjektu[[#This Row],[TIP PROJEKTA]],Parametri[TIP PROJEKTA],0),MATCH(DetaljiOProjektu[[#Headers],[STRUČNJAK ZA DIZAJN]],Parametri[#Headers],0))*INDEX('PARAMETRI PROJEKTA'!$B$12:$H$12,1,MATCH(DetaljiOProjektu[[#Headers],[STRUČNJAK ZA DIZAJN]],Parametri[#Headers],0))*DetaljiOProjektu[[#This Row],[PROCENJENI RAD]]","v":{"v":25000,"d":"25,000 RSD"}},{"$f":"INDEX(Parametri[],MATCH(DetaljiOProjektu[[#This Row],[TIP PROJEKTA]],Parametri[TIP PROJEKTA],0),MATCH(DetaljiOProjektu[[#Headers],[OSOBLJE ZA DOGAĐAJ]],Parametri[#Headers],0))*INDEX('PARAMETRI PROJEKTA'!$B$12:$H$12,1,MATCH(DetaljiOProjektu[[#Headers],[OSOBLJE ZA DOGAĐAJ]],Parametri[#Headers],0))*DetaljiOProjektu[[#This Row],[PROCENJENI RAD]]","v":{"v":0,"d":"0 RSD"}},{"$f":"INDEX(Parametri[],MATCH(DetaljiOProjektu[[#This Row],[TIP PROJEKTA]],Parametri[TIP PROJEKTA],0),MATCH(DetaljiOProjektu[[#Headers],[ADMINISTRATIVNO OSOBLJE]],Parametri[#Headers],0))*INDEX('PARAMETRI PROJEKTA'!$B$12:$H$12,1,MATCH(DetaljiOProjektu[[#Headers],[ADMINISTRATIVNO OSOBLJE]],Parametri[#Headers],0))*DetaljiOProjektu[[#This Row],[PROCENJENI RAD]]","v":{"v":3000,"d":"3,000 RSD"}},{"$f":"INDEX(Parametri[],MATCH(DetaljiOProjektu[[#This Row],[TIP PROJEKTA]],Parametri[TIP PROJEKTA],0),MATCH(DetaljiOProjektu[[#Headers],[MENADŽER NALOGA]],Parametri[#Headers],0))*INDEX('PARAMETRI PROJEKTA'!$B$12:$H$12,1,MATCH(DetaljiOProjektu[[#Headers],[MENADŽER NALOGA]],Parametri[#Headers],0))*DetaljiOProjektu[[#This Row],[STVARNI RAD]]","v":{"v":18000,"d":"18,000 RSD"}},{"$f":"INDEX(Parametri[],MATCH(DetaljiOProjektu[[#This Row],[TIP PROJEKTA]],Parametri[TIP PROJEKTA],0),MATCH(DetaljiOProjektu[[#Headers],[MENADŽER PROJEKTA]],Parametri[#Headers],0))*INDEX('PARAMETRI PROJEKTA'!$B$12:$H$12,1,MATCH(DetaljiOProjektu[[#Headers],[MENADŽER PROJEKTA]],Parametri[#Headers],0))*DetaljiOProjektu[[#This Row],[STVARNI RAD]]","v":{"v":12000,"d":"12,000 RSD"}},{"$f":"INDEX(Parametri[],MATCH(DetaljiOProjektu[[#This Row],[TIP PROJEKTA]],Parametri[TIP PROJEKTA],0),MATCH(DetaljiOProjektu[[#Headers],[STRETEŠKI MENADŽER]],Parametri[#Headers],0))*INDEX('PARAMETRI PROJEKTA'!$B$12:$H$12,1,MATCH(DetaljiOProjektu[[#Headers],[STRETEŠKI MENADŽER]],Parametri[#Headers],0))*DetaljiOProjektu[[#This Row],[STVARNI RAD]]","v":{"v":0,"d":"0 RSD"}},{"$f":"INDEX(Parametri[],MATCH(DetaljiOProjektu[[#This Row],[TIP PROJEKTA]],Parametri[TIP PROJEKTA],0),MATCH(DetaljiOProjektu[[#Headers],[STRUČNJAK ZA DIZAJN]],Parametri[#Headers],0))*INDEX('PARAMETRI PROJEKTA'!$B$12:$H$12,1,MATCH(DetaljiOProjektu[[#Headers],[STRUČNJAK ZA DIZAJN]],Parametri[#Headers],0))*DetaljiOProjektu[[#This Row],[STVARNI RAD]]","v":{"v":25000,"d":"25,000 RSD"}},{"$f":"INDEX(Parametri[],MATCH(DetaljiOProjektu[[#This Row],[TIP PROJEKTA]],Parametri[TIP PROJEKTA],0),MATCH(DetaljiOProjektu[[#Headers],[OSOBLJE ZA DOGAĐAJ]],Parametri[#Headers],0))*INDEX('PARAMETRI PROJEKTA'!$B$12:$H$12,1,MATCH(DetaljiOProjektu[[#Headers],[OSOBLJE ZA DOGAĐAJ]],Parametri[#Headers],0))*DetaljiOProjektu[[#This Row],[STVARNI RAD]]","v":{"v":0,"d":"0 RSD"}},{"$f":"INDEX(Parametri[],MATCH(DetaljiOProjektu[[#This Row],[TIP PROJEKTA]],Parametri[TIP PROJEKTA],0),MATCH(DetaljiOProjektu[[#Headers],[ADMINISTRATIVNO OSOBLJE]],Parametri[#Headers],0))*INDEX('PARAMETRI PROJEKTA'!$B$12:$H$12,1,MATCH(DetaljiOProjektu[[#Headers],[ADMINISTRATIVNO OSOBLJE]],Parametri[#Headers],0))*DetaljiOProjektu[[#This Row],[STVARNI RAD]]","v":{"v":3000,"d":"3,000 RSD"}}]
[null,"Projekat 4","Logistika događaja",{"$f":"DATE(YEAR(TODAY())+3,7,30)","v":"2025-07-30"},{"$f":"DATE(YEAR(TODAY())+3,9,28)","v":"2025-09-28"},{"$f":"DATE(YEAR(TODAY())+3,9,14)","v":"2025-09-14"},{"$f":"DATE(YEAR(TODAY())+3,11,13)","v":"2025-11-13"},150,145,{"$f":"DAYS360(DetaljiOProjektu[[#This Row],[PROCENJENI POČETAK]],DetaljiOProjektu[[#This Row],[PROCENJENI ZAVRŠETAK]],FALSE)","v":58},{"$f":"DAYS360(DetaljiOProjektu[[#This Row],[STVARNO VREME POČETKA]],DetaljiOProjektu[[#This Row],[STVARNO VREME ZAVRŠETKA]],FALSE)","v":59},{"$f":"INDEX(Parametri[],MATCH(DetaljiOProjektu[[#This Row],[TIP PROJEKTA]],Parametri[TIP PROJEKTA],0),MATCH(DetaljiOProjektu[[#Headers],[MENADŽER NALOGA]],Parametri[#Headers],0))*INDEX('PARAMETRI PROJEKTA'!$B$12:$H$12,1,MATCH(DetaljiOProjektu[[#Headers],[MENADŽER NALOGA]],Parametri[#Headers],0))*DetaljiOProjektu[[#This Row],[PROCENJENI RAD]]","v":{"v":5400,"d":"5,400 RSD"}},{"$f":"INDEX(Parametri[],MATCH(DetaljiOProjektu[[#This Row],[TIP PROJEKTA]],Parametri[TIP PROJEKTA],0),MATCH(DetaljiOProjektu[[#Headers],[MENADŽER PROJEKTA]],Parametri[#Headers],0))*INDEX('PARAMETRI PROJEKTA'!$B$12:$H$12,1,MATCH(DetaljiOProjektu[[#Headers],[MENADŽER PROJEKTA]],Parametri[#Headers],0))*DetaljiOProjektu[[#This Row],[PROCENJENI RAD]]","v":{"v":10800,"d":"10,800 RSD"}},{"$f":"INDEX(Parametri[],MATCH(DetaljiOProjektu[[#This Row],[TIP PROJEKTA]],Parametri[TIP PROJEKTA],0),MATCH(DetaljiOProjektu[[#Headers],[STRETEŠKI MENADŽER]],Parametri[#Headers],0))*INDEX('PARAMETRI PROJEKTA'!$B$12:$H$12,1,MATCH(DetaljiOProjektu[[#Headers],[STRETEŠKI MENADŽER]],Parametri[#Headers],0))*DetaljiOProjektu[[#This Row],[PROCENJENI RAD]]","v":{"v":0,"d":"0 RSD"}},{"$f":"INDEX(Parametri[],MATCH(DetaljiOProjektu[[#This Row],[TIP PROJEKTA]],Parametri[TIP PROJEKTA],0),MATCH(DetaljiOProjektu[[#Headers],[STRUČNJAK ZA DIZAJN]],Parametri[#Headers],0))*INDEX('PARAMETRI PROJEKTA'!$B$12:$H$12,1,MATCH(DetaljiOProjektu[[#Headers],[STRUČNJAK ZA DIZAJN]],Parametri[#Headers],0))*DetaljiOProjektu[[#This Row],[PROCENJENI RAD]]","v":{"v":0,"d":"0 RSD"}},{"$f":"INDEX(Parametri[],MATCH(DetaljiOProjektu[[#This Row],[TIP PROJEKTA]],Parametri[TIP PROJEKTA],0),MATCH(DetaljiOProjektu[[#Headers],[OSOBLJE ZA DOGAĐAJ]],Parametri[#Headers],0))*INDEX('PARAMETRI PROJEKTA'!$B$12:$H$12,1,MATCH(DetaljiOProjektu[[#Headers],[OSOBLJE ZA DOGAĐAJ]],Parametri[#Headers],0))*DetaljiOProjektu[[#This Row],[PROCENJENI RAD]]","v":{"v":1200,"d":"1,200 RSD"}},{"$f":"INDEX(Parametri[],MATCH(DetaljiOProjektu[[#This Row],[TIP PROJEKTA]],Parametri[TIP PROJEKTA],0),MATCH(DetaljiOProjektu[[#Headers],[ADMINISTRATIVNO OSOBLJE]],Parametri[#Headers],0))*INDEX('PARAMETRI PROJEKTA'!$B$12:$H$12,1,MATCH(DetaljiOProjektu[[#Headers],[ADMINISTRATIVNO OSOBLJE]],Parametri[#Headers],0))*DetaljiOProjektu[[#This Row],[PROCENJENI RAD]]","v":{"v":900,"d":"900 RSD"}},{"$f":"INDEX(Parametri[],MATCH(DetaljiOProjektu[[#This Row],[TIP PROJEKTA]],Parametri[TIP PROJEKTA],0),MATCH(DetaljiOProjektu[[#Headers],[MENADŽER NALOGA]],Parametri[#Headers],0))*INDEX('PARAMETRI PROJEKTA'!$B$12:$H$12,1,MATCH(DetaljiOProjektu[[#Headers],[MENADŽER NALOGA]],Parametri[#Headers],0))*DetaljiOProjektu[[#This Row],[STVARNI RAD]]","v":{"v":5220,"d":"5,220 RSD"}},{"$f":"INDEX(Parametri[],MATCH(DetaljiOProjektu[[#This Row],[TIP PROJEKTA]],Parametri[TIP PROJEKTA],0),MATCH(DetaljiOProjektu[[#Headers],[MENADŽER PROJEKTA]],Parametri[#Headers],0))*INDEX('PARAMETRI PROJEKTA'!$B$12:$H$12,1,MATCH(DetaljiOProjektu[[#Headers],[MENADŽER PROJEKTA]],Parametri[#Headers],0))*DetaljiOProjektu[[#This Row],[STVARNI RAD]]","v":{"v":10440,"d":"10,440 RSD"}},{"$f":"INDEX(Parametri[],MATCH(DetaljiOProjektu[[#This Row],[TIP PROJEKTA]],Parametri[TIP PROJEKTA],0),MATCH(DetaljiOProjektu[[#Headers],[STRETEŠKI MENADŽER]],Parametri[#Headers],0))*INDEX('PARAMETRI PROJEKTA'!$B$12:$H$12,1,MATCH(DetaljiOProjektu[[#Headers],[STRETEŠKI MENADŽER]],Parametri[#Headers],0))*DetaljiOProjektu[[#This Row],[STVARNI RAD]]","v":{"v":0,"d":"0 RSD"}},{"$f":"INDEX(Parametri[],MATCH(DetaljiOProjektu[[#This Row],[TIP PROJEKTA]],Parametri[TIP PROJEKTA],0),MATCH(DetaljiOProjektu[[#Headers],[STRUČNJAK ZA DIZAJN]],Parametri[#Headers],0))*INDEX('PARAMETRI PROJEKTA'!$B$12:$H$12,1,MATCH(DetaljiOProjektu[[#Headers],[STRUČNJAK ZA DIZAJN]],Parametri[#Headers],0))*DetaljiOProjektu[[#This Row],[STVARNI RAD]]","v":{"v":0,"d":"0 RSD"}},{"$f":"INDEX(Parametri[],MATCH(DetaljiOProjektu[[#This Row],[TIP PROJEKTA]],Parametri[TIP PROJEKTA],0),MATCH(DetaljiOProjektu[[#Headers],[OSOBLJE ZA DOGAĐAJ]],Parametri[#Headers],0))*INDEX('PARAMETRI PROJEKTA'!$B$12:$H$12,1,MATCH(DetaljiOProjektu[[#Headers],[OSOBLJE ZA DOGAĐAJ]],Parametri[#Headers],0))*DetaljiOProjektu[[#This Row],[STVARNI RAD]]","v":{"v":1160,"d":"1,160 RSD"}},{"$f":"INDEX(Parametri[],MATCH(DetaljiOProjektu[[#This Row],[TIP PROJEKTA]],Parametri[TIP PROJEKTA],0),MATCH(DetaljiOProjektu[[#Headers],[ADMINISTRATIVNO OSOBLJE]],Parametri[#Headers],0))*INDEX('PARAMETRI PROJEKTA'!$B$12:$H$12,1,MATCH(DetaljiOProjektu[[#Headers],[ADMINISTRATIVNO OSOBLJE]],Parametri[#Headers],0))*DetaljiOProjektu[[#This Row],[STVARNI RAD]]","v":{"v":870,"d":"870 RSD"}}]
[null,"Projekat 5","Osoblje za događaj",{"$f":"DATE(YEAR(TODAY())+4,8,11)","v":"2026-08-11"},{"$f":"DATE(YEAR(TODAY())+4,8,21)","v":"2026-08-21"},{"$f":"DATE(YEAR(TODAY())+4,9,14)","v":"2026-09-14"},{"$f":"DATE(YEAR(TODAY())+4,9,25)","v":"2026-09-25"},250,255,{"$f":"DAYS360(DetaljiOProjektu[[#This Row],[PROCENJENI POČETAK]],DetaljiOProjektu[[#This Row],[PROCENJENI ZAVRŠETAK]],FALSE)","v":10},{"$f":"DAYS360(DetaljiOProjektu[[#This Row],[STVARNO VREME POČETKA]],DetaljiOProjektu[[#This Row],[STVARNO VREME ZAVRŠETKA]],FALSE)","v":11},{"$f":"INDEX(Parametri[],MATCH(DetaljiOProjektu[[#This Row],[TIP PROJEKTA]],Parametri[TIP PROJEKTA],0),MATCH(DetaljiOProjektu[[#Headers],[MENADŽER NALOGA]],Parametri[#Headers],0))*INDEX('PARAMETRI PROJEKTA'!$B$12:$H$12,1,MATCH(DetaljiOProjektu[[#Headers],[MENADŽER NALOGA]],Parametri[#Headers],0))*DetaljiOProjektu[[#This Row],[PROCENJENI RAD]]","v":{"v":9000,"d":"9,000 RSD"}},{"$f":"INDEX(Parametri[],MATCH(DetaljiOProjektu[[#This Row],[TIP PROJEKTA]],Parametri[TIP PROJEKTA],0),MATCH(DetaljiOProjektu[[#Headers],[MENADŽER PROJEKTA]],Parametri[#Headers],0))*INDEX('PARAMETRI PROJEKTA'!$B$12:$H$12,1,MATCH(DetaljiOProjektu[[#Headers],[MENADŽER PROJEKTA]],Parametri[#Headers],0))*DetaljiOProjektu[[#This Row],[PROCENJENI RAD]]","v":{"v":3000,"d":"3,000 RSD"}},{"$f":"INDEX(Parametri[],MATCH(DetaljiOProjektu[[#This Row],[TIP PROJEKTA]],Parametri[TIP PROJEKTA],0),MATCH(DetaljiOProjektu[[#Headers],[STRETEŠKI MENADŽER]],Parametri[#Headers],0))*INDEX('PARAMETRI PROJEKTA'!$B$12:$H$12,1,MATCH(DetaljiOProjektu[[#Headers],[STRETEŠKI MENADŽER]],Parametri[#Headers],0))*DetaljiOProjektu[[#This Row],[PROCENJENI RAD]]","v":{"v":0,"d":"0 RSD"}},{"$f":"INDEX(Parametri[],MATCH(DetaljiOProjektu[[#This Row],[TIP PROJEKTA]],Parametri[TIP PROJEKTA],0),MATCH(DetaljiOProjektu[[#Headers],[STRUČNJAK ZA DIZAJN]],Parametri[#Headers],0))*INDEX('PARAMETRI PROJEKTA'!$B$12:$H$12,1,MATCH(DetaljiOProjektu[[#Headers],[STRUČNJAK ZA DIZAJN]],Parametri[#Headers],0))*DetaljiOProjektu[[#This Row],[PROCENJENI RAD]]","v":{"v":0,"d":"0 RSD"}},{"$f":"INDEX(Parametri[],MATCH(DetaljiOProjektu[[#This Row],[TIP PROJEKTA]],Parametri[TIP PROJEKTA],0),MATCH(DetaljiOProjektu[[#Headers],[OSOBLJE ZA DOGAĐAJ]],Parametri[#Headers],0))*INDEX('PARAMETRI PROJEKTA'!$B$12:$H$12,1,MATCH(DetaljiOProjektu[[#Headers],[OSOBLJE ZA DOGAĐAJ]],Parametri[#Headers],0))*DetaljiOProjektu[[#This Row],[PROCENJENI RAD]]","v":{"v":12000,"d":"12,000 RSD"}},{"$f":"INDEX(Parametri[],MATCH(DetaljiOProjektu[[#This Row],[TIP PROJEKTA]],Parametri[TIP PROJEKTA],0),MATCH(DetaljiOProjektu[[#Headers],[ADMINISTRATIVNO OSOBLJE]],Parametri[#Headers],0))*INDEX('PARAMETRI PROJEKTA'!$B$12:$H$12,1,MATCH(DetaljiOProjektu[[#Headers],[ADMINISTRATIVNO OSOBLJE]],Parametri[#Headers],0))*DetaljiOProjektu[[#This Row],[PROCENJENI RAD]]","v":{"v":1500,"d":"1,500 RSD"}},{"$f":"INDEX(Parametri[],MATCH(DetaljiOProjektu[[#This Row],[TIP PROJEKTA]],Parametri[TIP PROJEKTA],0),MATCH(DetaljiOProjektu[[#Headers],[MENADŽER NALOGA]],Parametri[#Headers],0))*INDEX('PARAMETRI PROJEKTA'!$B$12:$H$12,1,MATCH(DetaljiOProjektu[[#Headers],[MENADŽER NALOGA]],Parametri[#Headers],0))*DetaljiOProjektu[[#This Row],[STVARNI RAD]]","v":{"v":9180,"d":"9,180 RSD"}},{"$f":"INDEX(Parametri[],MATCH(DetaljiOProjektu[[#This Row],[TIP PROJEKTA]],Parametri[TIP PROJEKTA],0),MATCH(DetaljiOProjektu[[#Headers],[MENADŽER PROJEKTA]],Parametri[#Headers],0))*INDEX('PARAMETRI PROJEKTA'!$B$12:$H$12,1,MATCH(DetaljiOProjektu[[#Headers],[MENADŽER PROJEKTA]],Parametri[#Headers],0))*DetaljiOProjektu[[#This Row],[STVARNI RAD]]","v":{"v":3060,"d":"3,060 RSD"}},{"$f":"INDEX(Parametri[],MATCH(DetaljiOProjektu[[#This Row],[TIP PROJEKTA]],Parametri[TIP PROJEKTA],0),MATCH(DetaljiOProjektu[[#Headers],[STRETEŠKI MENADŽER]],Parametri[#Headers],0))*INDEX('PARAMETRI PROJEKTA'!$B$12:$H$12,1,MATCH(DetaljiOProjektu[[#Headers],[STRETEŠKI MENADŽER]],Parametri[#Headers],0))*DetaljiOProjektu[[#This Row],[STVARNI RAD]]","v":{"v":0,"d":"0 RSD"}},{"$f":"INDEX(Parametri[],MATCH(DetaljiOProjektu[[#This Row],[TIP PROJEKTA]],Parametri[TIP PROJEKTA],0),MATCH(DetaljiOProjektu[[#Headers],[STRUČNJAK ZA DIZAJN]],Parametri[#Headers],0))*INDEX('PARAMETRI PROJEKTA'!$B$12:$H$12,1,MATCH(DetaljiOProjektu[[#Headers],[STRUČNJAK ZA DIZAJN]],Parametri[#Headers],0))*DetaljiOProjektu[[#This Row],[STVARNI RAD]]","v":{"v":0,"d":"0 RSD"}},{"$f":"INDEX(Parametri[],MATCH(DetaljiOProjektu[[#This Row],[TIP PROJEKTA]],Parametri[TIP PROJEKTA],0),MATCH(DetaljiOProjektu[[#Headers],[OSOBLJE ZA DOGAĐAJ]],Parametri[#Headers],0))*INDEX('PARAMETRI PROJEKTA'!$B$12:$H$12,1,MATCH(DetaljiOProjektu[[#Headers],[OSOBLJE ZA DOGAĐAJ]],Parametri[#Headers],0))*DetaljiOProjektu[[#This Row],[STVARNI RAD]]","v":{"v":12240,"d":"12,240 RSD"}},{"$f":"INDEX(Parametri[],MATCH(DetaljiOProjektu[[#This Row],[TIP PROJEKTA]],Parametri[TIP PROJEKTA],0),MATCH(DetaljiOProjektu[[#Headers],[ADMINISTRATIVNO OSOBLJE]],Parametri[#Headers],0))*INDEX('PARAMETRI PROJEKTA'!$B$12:$H$12,1,MATCH(DetaljiOProjektu[[#Headers],[ADMINISTRATIVNO OSOBLJE]],Parametri[#Headers],0))*DetaljiOProjektu[[#This Row],[STVARNI RAD]]","v":{"v":1530,"d":"1,530 RSD"}}]
[null,"ZBIR",{"$nulls":5},{"$f":"SUBTOTAL(109,DetaljiOProjektu[PROCENJENI RAD])","v":1500},{"$f":"SUBTOTAL(109,DetaljiOProjektu[STVARNI RAD])","v":1510},{"$f":"SUBTOTAL(109,DetaljiOProjektu[PROCENJENO TRAJANJE])","v":225},{"$f":"SUBTOTAL(109,DetaljiOProjektu[STVARNO TRAJANJE])","v":597}]

{"sheet":"UKUPNE VREDNOSTI ZA PROJEKAT","index":3,"n_rows":10,"n_cols":14,"rows_kept":10}
[null,{"$f":"'PARAMETRI PROJEKTA'!B1","v":"Ime preduzeća"}]
[null,"Praćenje projekta upravljanja događajem"]
[null,{"$f":"'PARAMETRI PROJEKTA'!B3","v":"Ime preduzeća Poverljivo"}]
["Izvedena tabela koja počinje od ćelije sa desne strane automatski se ažurira.\nINFORMACIJE\nDa biste osvežili izvedenu tabelu sa desne strane, izaberite je (bilo koju ćeliju u izvedenoj tabeli), na kartici trake ALATKE IZVEDENE TABELE | ANALIZA izaberite dugme „Osveži“ ili pritisnite kombinaciju tastera SHIFT+F10 u bilo kojoj ćeliji izvedene tabele i izaberite stavku „Osveži“.","IME PROJEKTA","PROCENA MENADŽERA NALOGA","PROCENA MENADŽERA PROJEKTA","PROCENA STRETEŠKOG MENADŽERA","PROCENA STRUČNJAKA ZA DIZAJN","PROCENA OSOBLJA ZA DOGAĐAJ","PROCENA ADMINISTRATIVNOG OSOBLJA","STVARNI MENADŽER NALOGA","STVARNI MENADŽER PROJEKTA","STVARNI STRATEŠKI MENADŽER","STVARNI STRUČNJAK ZA DIZAJN","STVARNO OSOBLJE ZA DOGAĐAJ","STVARNO ADMINISTRATIVNO OSOBLJE"]
[null,"Projekat 1",{"v":7200,"d":"7,200.00 RSD"},{"v":2400,"d":"2,400.00 RSD"},{"v":18000,"d":"18,000.00 RSD"},{"v":0,"d":"0.00 RSD"},{"v":0,"d":"0.00 RSD"},{"v":1200,"d":"1,200.00 RSD"},{"v":7920,"d":"7,920.00 RSD"},{"v":2640,"d":"2,640.00 RSD"},{"v":19800,"d":"19,800.00 RSD"},{"v":0,"d":"0.00 RSD"},{"v":0,"d":"0.00 RSD"},{"v":1320,"d":"1,320.00 RSD"}]
[null,"Projekat 2",{"v":14400,"d":"14,400.00 RSD"},{"v":24000,"d":"24,000.00 RSD"},{"v":6000,"d":"6,000.00 RSD"},{"v":4000,"d":"4,000.00 RSD"},{"v":0,"d":"0.00 RSD"},{"v":2400,"d":"2,400.00 RSD"},{"v":14040,"d":"14,040.00 RSD"},{"v":23400,"d":"23,400.00 RSD"},{"v":5850,"d":"5,850.00 RSD"},{"v":3900,"d":"3,900.00 RSD"},{"v":0,"d":"0.00 RSD"},{"v":2340,"d":"2,340.00 RSD"}]
[null,"Projekat 3",{"v":18000,"d":"18,000.00 RSD"},{"v":12000,"d":"12,000.00 RSD"},{"v":0,"d":"0.00 RSD"},{"v":25000,"d":"25,000.00 RSD"},{"v":0,"d":"0.00 RSD"},{"v":3000,"d":"3,000.00 RSD"},{"v":18000,"d":"18,000.00 RSD"},{"v":12000,"d":"12,000.00 RSD"},{"v":0,"d":"0.00 RSD"},{"v":25000,"d":"25,000.00 RSD"},{"v":0,"d":"0.00 RSD"},{"v":3000,"d":"3,000.00 RSD"}]
[null,"Projekat 4",{"v":5400,"d":"5,400.00 RSD"},{"v":10800,"d":"10,800.00 RSD"},{"v":0,"d":"0.00 RSD"},{"v":0,"d":"0.00 RSD"},{"v":1200,"d":"1,200.00 RSD"},{"v":900,"d":"900.00 RSD"},{"v":5220,"d":"5,220.00 RSD"},{"v":10440,"d":"10,440.00 RSD"},{"v":0,"d":"0.00 RSD"},{"v":0,"d":"0.00 RSD"},{"v":1160,"d":"1,160.00 RSD"},{"v":870,"d":"870.00 RSD"}]
[null,"Projekat 5",{"v":9000,"d":"9,000.00 RSD"},{"v":3000,"d":"3,000.00 RSD"},{"v":0,"d":"0.00 RSD"},{"v":0,"d":"0.00 RSD"},{"v":12000,"d":"12,000.00 RSD"},{"v":1500,"d":"1,500.00 RSD"},{"v":9180,"d":"9,180.00 RSD"},{"v":3060,"d":"3,060.00 RSD"},{"v":0,"d":"0.00 RSD"},{"v":0,"d":"0.00 RSD"},{"v":12240,"d":"12,240.00 RSD"},{"v":1530,"d":"1,530.00 RSD"}]
[null,"Konačni zbir",{"v":54000,"d":"54,000.00 RSD"},{"v":52200,"d":"52,200.00 RSD"},{"v":24000,"d":"24,000.00 RSD"},{"v":29000,"d":"29,000.00 RSD"},{"v":13200,"d":"13,200.00 RSD"},{"v":9000,"d":"9,000.00 RSD"},{"v":54360,"d":"54,360.00 RSD"},{"v":51540,"d":"51,540.00 RSD"},{"v":25650,"d":"25,650.00 RSD"},{"v":28900,"d":"28,900.00 RSD"},{"v":13400,"d":"13,400.00 RSD"},{"v":9060,"d":"9,060.00 RSD"}]